{"text_format":"3","workbook":"xlsx","n_sheets":4,"sheets":["ЗАХОДИ","КАЛЕНДАР","ВЕРСІЯ ДЛЯ ДРУКУ","АДМІНІСТРАТОР"],"not_rendered":{"defined_names":18},"read":"whole","date_system":"1900"}

{"sheet":"ЗАХОДИ","index":0,"n_rows":38,"n_cols":5,"rows_kept":38}
[]
[null,"ПЛАНУВАЛЬНИК ЗАХОДІВ"]
[null,"МІСЬКОЇ РАДИ НА МІСЯЦЬ"]
[]
[]
[]
[]
[null,"ДАТА","ДЕНЬ","МІСЯЦЬ","НАЗВА ЗАХОДУ"]
[null,"2016-07-01",{"$f":"IF(ISBLANK(Заходивтаблиці[[#This Row],[ДАТА]]),\"\",UPPER(TEXT(Заходивтаблиці[[#This Row],[ДАТА]],\"ddd\")))","v":"ПТ"},{"$f":"IF(ISBLANK(Заходивтаблиці[[#This Row],[ДАТА]]),\"\",UPPER(TEXT(Заходивтаблиці[[#This Row],[ДАТА]],\"mmm\")))","v":"ЛИП"},"Озеленення міста"]
[null,"2016-07-01",{"$f":"IF(ISBLANK(Заходивтаблиці[[#This Row],[ДАТА]]),\"\",UPPER(TEXT(Заходивтаблиці[[#This Row],[ДАТА]],\"ddd\")))","v":"ПТ"},{"$f":"IF(ISBLANK(Заходивтаблиці[[#This Row],[ДАТА]]),\"\",UPPER(TEXT(Заходивтаблиці[[#This Row],[ДАТА]],\"mmm\")))","v":"ЛИП"},"Засідання міськради"]
[null,"2016-07-02",{"$f":"IF(ISBLANK(Заходивтаблиці[[#This Row],[ДАТА]]),\"\",UPPER(TEXT(Заходивтаблиці[[#This Row],[ДАТА]],\"ddd\")))","v":"СБ"},{"$f":"IF(ISBLANK(Заходивтаблиці[[#This Row],[ДАТА]]),\"\",UPPER(TEXT(Заходивтаблиці[[#This Row],[ДАТА]],\"mmm\")))","v":"ЛИП"},"Озеленення міста"]
[null,"2016-07-03",{"$f":"IF(ISBLANK(Заходивтаблиці[[#This Row],[ДАТА]]),\"\",UPPER(TEXT(Заходивтаблиці[[#This Row],[ДАТА]],\"ddd\")))","v":"НД"},{"$f":"IF(ISBLANK(Заходивтаблиці[[#This Row],[ДАТА]]),\"\",UPPER(TEXT(Заходивтаблиці[[#This Row],[ДАТА]],\"mmm\")))","v":"ЛИП"},"Вечір кіно в парку"]
[null,"2016-07-08",{"$f":"IF(ISBLANK(Заходивтаблиці[[#This Row],[ДАТА]]),\"\",UPPER(TEXT(Заходивтаблиці[[#This Row],[ДАТА]],\"ddd\")))","v":"ПТ"},{"$f":"IF(ISBLANK(Заходивтаблиці[[#This Row],[ДАТА]]),\"\",UPPER(TEXT(Заходивтаблиці[[#This Row],[ДАТА]],\"mmm\")))","v":"ЛИП"},"Засідання міськради"]
[null,"2016-07-11",{"$f":"IF(ISBLANK(Заходивтаблиці[[#This Row],[ДАТА]]),\"\",UPPER(TEXT(Заходивтаблиці[[#This Row],[ДАТА]],\"ddd\")))","v":"ПН"},{"$f":"IF(ISBLANK(Заходивтаблиці[[#This Row],[ДАТА]]),\"\",UPPER(TEXT(Заходивтаблиці[[#This Row],[ДАТА]],\"mmm\")))","v":"ЛИП"},"Офіційний обід у торговій палаті"]
[null,"2016-07-12",{"$f":"IF(ISBLANK(Заходивтаблиці[[#This Row],[ДАТА]]),\"\",UPPER(TEXT(Заходивтаблиці[[#This Row],[ДАТА]],\"ddd\")))","v":"ВТ"},{"$f":"IF(ISBLANK(Заходивтаблиці[[#This Row],[ДАТА]]),\"\",UPPER(TEXT(Заходивтаблиці[[#This Row],[ДАТА]],\"mmm\")))","v":"ЛИП"},"Виставка пам’яток старовини"]
[null,"2016-07-14",{"$f":"IF(ISBLANK(Заходивтаблиці[[#This Row],[ДАТА]]),\"\",UPPER(TEXT(Заходивтаблиці[[#This Row],[ДАТА]],\"ddd\")))","v":"ЧТ"},{"$f":"IF(ISBLANK(Заходивтаблиці[[#This Row],[ДАТА]]),\"\",UPPER(TEXT(Заходивтаблиці[[#This Row],[ДАТА]],\"mmm\")))","v":"ЛИП"},"Семінар для городян"]
[null,"2016-07-15",{"$f":"IF(ISBLANK(Заходивтаблиці[[#This Row],[ДАТА]]),\"\",UPPER(TEXT(Заходивтаблиці[[#This Row],[ДАТА]],\"ddd\")))","v":"ПТ"},{"$f":"IF(ISBLANK(Заходивтаблиці[[#This Row],[ДАТА]]),\"\",UPPER(TEXT(Заходивтаблиці[[#This Row],[ДАТА]],\"mmm\")))","v":"ЛИП"},"Засідання міськради"]
[null,"2016-07-19",{"$f":"IF(ISBLANK(Заходивтаблиці[[#This Row],[ДАТА]]),\"\",UPPER(TEXT(Заходивтаблиці[[#This Row],[ДАТА]],\"ddd\")))","v":"ВТ"},{"$f":"IF(ISBLANK(Заходивтаблиці[[#This Row],[ДАТА]]),\"\",UPPER(TEXT(Заходивтаблиці[[#This Row],[ДАТА]],\"mmm\")))","v":"ЛИП"},"Семінар зі стратегічного планування"]
[null,"2016-07-20",{"$f":"IF(ISBLANK(Заходивтаблиці[[#This Row],[ДАТА]]),\"\",UPPER(TEXT(Заходивтаблиці[[#This Row],[ДАТА]],\"ddd\")))","v":"СР"},{"$f":"IF(ISBLANK(Заходивтаблиці[[#This Row],[ДАТА]]),\"\",UPPER(TEXT(Заходивтаблиці[[#This Row],[ДАТА]],\"mmm\")))","v":"ЛИП"},"Прибирання парку"]
[null,"2016-07-22",{"$f":"IF(ISBLANK(Заходивтаблиці[[#This Row],[ДАТА]]),\"\",UPPER(TEXT(Заходивтаблиці[[#This Row],[ДАТА]],\"ddd\")))","v":"ПТ"},{"$f":"IF(ISBLANK(Заходивтаблиці[[#This Row],[ДАТА]]),\"\",UPPER(TEXT(Заходивтаблиці[[#This Row],[ДАТА]],\"mmm\")))","v":"ЛИП"},"Засідання міськради"]
[null,"2016-07-26",{"$f":"IF(ISBLANK(Заходивтаблиці[[#This Row],[ДАТА]]),\"\",UPPER(TEXT(Заходивтаблиці[[#This Row],[ДАТА]],\"ddd\")))","v":"ВТ"},{"$f":"IF(ISBLANK(Заходивтаблиці[[#This Row],[ДАТА]]),\"\",UPPER(TEXT(Заходивтаблиці[[#This Row],[ДАТА]],\"mmm\")))","v":"ЛИП"},"Пішохідна екскурсія центром міста"]
[null,"2016-07-26",{"$f":"IF(ISBLANK(Заходивтаблиці[[#This Row],[ДАТА]]),\"\",UPPER(TEXT(Заходивтаблиці[[#This Row],[ДАТА]],\"ddd\")))","v":"ВТ"},{"$f":"IF(ISBLANK(Заходивтаблиці[[#This Row],[ДАТА]]),\"\",UPPER(TEXT(Заходивтаблиці[[#This Row],[ДАТА]],\"mmm\")))","v":"ЛИП"},"Відвідування кафе та ресторанів"]
[null,"2016-07-29",{"$f":"IF(ISBLANK(Заходивтаблиці[[#This Row],[ДАТА]]),\"\",UPPER(TEXT(Заходивтаблиці[[#This Row],[ДАТА]],\"ddd\")))","v":"ПТ"},{"$f":"IF(ISBLANK(Заходивтаблиці[[#This Row],[ДАТА]]),\"\",UPPER(TEXT(Заходивтаблиці[[#This Row],[ДАТА]],\"mmm\")))","v":"ЛИП"},"Засідання міськради"]
[null,"2016-08-05",{"$f":"IF(ISBLANK(Заходивтаблиці[[#This Row],[ДАТА]]),\"\",UPPER(TEXT(Заходивтаблиці[[#This Row],[ДАТА]],\"ddd\")))","v":"ПТ"},{"$f":"IF(ISBLANK(Заходивтаблиці[[#This Row],[ДАТА]]),\"\",UPPER(TEXT(Заходивтаблиці[[#This Row],[ДАТА]],\"mmm\")))","v":"СЕР"},"Засідання міськради"]
[null,"2016-08-10",{"$f":"IF(ISBLANK(Заходивтаблиці[[#This Row],[ДАТА]]),\"\",UPPER(TEXT(Заходивтаблиці[[#This Row],[ДАТА]],\"ddd\")))","v":"СР"},{"$f":"IF(ISBLANK(Заходивтаблиці[[#This Row],[ДАТА]]),\"\",UPPER(TEXT(Заходивтаблиці[[#This Row],[ДАТА]],\"mmm\")))","v":"СЕР"},"Прибирання парку"]
[null,"2016-08-12",{"$f":"IF(ISBLANK(Заходивтаблиці[[#This Row],[ДАТА]]),\"\",UPPER(TEXT(Заходивтаблиці[[#This Row],[ДАТА]],\"ddd\")))","v":"ПТ"},{"$f":"IF(ISBLANK(Заходивтаблиці[[#This Row],[ДАТА]]),\"\",UPPER(TEXT(Заходивтаблиці[[#This Row],[ДАТА]],\"mmm\")))","v":"СЕР"},"Засідання міськради"]
[null,"2016-08-13",{"$f":"IF(ISBLANK(Заходивтаблиці[[#This Row],[ДАТА]]),\"\",UPPER(TEXT(Заходивтаблиці[[#This Row],[ДАТА]],\"ddd\")))","v":"СБ"},{"$f":"IF(ISBLANK(Заходивтаблиці[[#This Row],[ДАТА]]),\"\",UPPER(TEXT(Заходивтаблиці[[#This Row],[ДАТА]],\"mmm\")))","v":"СЕР"},"Озеленення міста"]
[null,"2016-09-01",{"$f":"IF(ISBLANK(Заходивтаблиці[[#This Row],[ДАТА]]),\"\",UPPER(TEXT(Заходивтаблиці[[#This Row],[ДАТА]],\"ddd\")))","v":"ЧТ"},{"$f":"IF(ISBLANK(Заходивтаблиці[[#This Row],[ДАТА]]),\"\",UPPER(TEXT(Заходивтаблиці[[#This Row],[ДАТА]],\"mmm\")))","v":"ВЕР"},"Засідання бюджетного комітету"]
[null,"2016-10-01",{"$f":"IF(ISBLANK(Заходивтаблиці[[#This Row],[ДАТА]]),\"\",UPPER(TEXT(Заходивтаблиці[[#This Row],[ДАТА]],\"ddd\")))","v":"СБ"},{"$f":"IF(ISBLANK(Заходивтаблиці[[#This Row],[ДАТА]]),\"\",UPPER(TEXT(Заходивтаблиці[[#This Row],[ДАТА]],\"mmm\")))","v":"ЖОВ"},"Засідання бюджетного комітету"]
[null,"2016-11-03",{"$f":"IF(ISBLANK(Заходивтаблиці[[#This Row],[ДАТА]]),\"\",UPPER(TEXT(Заходивтаблиці[[#This Row],[ДАТА]],\"ddd\")))","v":"ЧТ"},{"$f":"IF(ISBLANK(Заходивтаблиці[[#This Row],[ДАТА]]),\"\",UPPER(TEXT(Заходивтаблиці[[#This Row],[ДАТА]],\"mmm\")))","v":"ЛИС"},"Засідання бюджетного комітету"]
[null,"2016-12-01",{"$f":"IF(ISBLANK(Заходивтаблиці[[#This Row],[ДАТА]]),\"\",UPPER(TEXT(Заходивтаблиці[[#This Row],[ДАТА]],\"ddd\")))","v":"ЧТ"},{"$f":"IF(ISBLANK(Заходивтаблиці[[#This Row],[ДАТА]]),\"\",UPPER(TEXT(Заходивтаблиці[[#This Row],[ДАТА]],\"mmm\")))","v":"ГРУ"},"Засідання бюджетного комітету"]
[null,"2017-01-01",{"$f":"IF(ISBLANK(Заходивтаблиці[[#This Row],[ДАТА]]),\"\",UPPER(TEXT(Заходивтаблиці[[#This Row],[ДАТА]],\"ddd\")))","v":"НД"},{"$f":"IF(ISBLANK(Заходивтаблиці[[#This Row],[ДАТА]]),\"\",UPPER(TEXT(Заходивтаблиці[[#This Row],[ДАТА]],\"mmm\")))","v":"СІЧ"},"Засідання бюджетного комітету"]
[null,"2017-02-02",{"$f":"IF(ISBLANK(Заходивтаблиці[[#This Row],[ДАТА]]),\"\",UPPER(TEXT(Заходивтаблиці[[#This Row],[ДАТА]],\"ddd\")))","v":"ЧТ"},{"$f":"IF(ISBLANK(Заходивтаблиці[[#This Row],[ДАТА]]),\"\",UPPER(TEXT(Заходивтаблиці[[#This Row],[ДАТА]],\"mmm\")))","v":"ЛЮТ"},"Засідання бюджетного комітету"]
[null,"2017-03-02",{"$f":"IF(ISBLANK(Заходивтаблиці[[#This Row],[ДАТА]]),\"\",UPPER(TEXT(Заходивтаблиці[[#This Row],[ДАТА]],\"ddd\")))","v":"ЧТ"},{"$f":"IF(ISBLANK(Заходивтаблиці[[#This Row],[ДАТА]]),\"\",UPPER(TEXT(Заходивтаблиці[[#This Row],[ДАТА]],\"mmm\")))","v":"БЕР"},"Засідання бюджетного комітету"]
[null,"2017-04-01",{"$f":"IF(ISBLANK(Заходивтаблиці[[#This Row],[ДАТА]]),\"\",UPPER(TEXT(Заходивтаблиці[[#This Row],[ДАТА]],\"ddd\")))","v":"СБ"},{"$f":"IF(ISBLANK(Заходивтаблиці[[#This Row],[ДАТА]]),\"\",UPPER(TEXT(Заходивтаблиці[[#This Row],[ДАТА]],\"mmm\")))","v":"КВІ"},"Засідання бюджетного комітету"]
[null,"2017-05-01",{"$f":"IF(ISBLANK(Заходивтаблиці[[#This Row],[ДАТА]]),\"\",UPPER(TEXT(Заходивтаблиці[[#This Row],[ДАТА]],\"ddd\")))","v":"ПН"},{"$f":"IF(ISBLANK(Заходивтаблиці[[#This Row],[ДАТА]]),\"\",UPPER(TEXT(Заходивтаблиці[[#This Row],[ДАТА]],\"mmm\")))","v":"ТРА"},"Засідання бюджетного комітету"]
[null,"2017-06-01",{"$f":"IF(ISBLANK(Заходивтаблиці[[#This Row],[ДАТА]]),\"\",UPPER(TEXT(Заходивтаблиці[[#This Row],[ДАТА]],\"ddd\")))","v":"ЧТ"},{"$f":"IF(ISBLANK(Заходивтаблиці[[#This Row],[ДАТА]]),\"\",UPPER(TEXT(Заходивтаблиці[[#This Row],[ДАТА]],\"mmm\")))","v":"ЧЕР"},"Засідання бюджетного комітету"]
[null,"2017-06-02",{"$f":"IF(ISBLANK(Заходивтаблиці[[#This Row],[ДАТА]]),\"\",UPPER(TEXT(Заходивтаблиці[[#This Row],[ДАТА]],\"ddd\")))","v":"ПТ"},{"$f":"IF(ISBLANK(Заходивтаблиці[[#This Row],[ДАТА]]),\"\",UPPER(TEXT(Заходивтаблиці[[#This Row],[ДАТА]],\"mmm\")))","v":"ЧЕР"},"Засідання міськради"]

{"sheet":"КАЛЕНДАР","index":1,"n_rows":35,"n_cols":21,"rows_kept":35,"merged":[[1,5,1,11],[30,8,34,20]]}
[]
[null,null,2016,null,null,{"$f":"LOOKUP(НомерМісяця,Місяцівтаблиці[ЧИСЛО],Місяцівтаблиці[МІСЯЦЬ])","v":"ЛИПЕНЬ"}]
[null,null,7,null,null,{"$f":"DATE(ПереглядРоку,НомерМісяця,1)","v":"2016-07-01"},null,null,{"$f":"WEEKDAY(ДатаПочатку)","v":6}]
[null,null,"ПН",null,null,"ВТ",null,null,"СР",null,null,"ЧТ",null,null,"ПТ",null,null,"СБ",null,null,"НД"]
[]
[null,null,{"$f":"ДатаПочатку-(WEEKDAY(ДатаПочатку)-2)+{0;1;2;3;4;5}*7 +{1,2,3,4,5,6,7}-3+COLUMN(B1)","v":"2016-06-27"},null,null,{"$f":"ДатаПочатку-(WEEKDAY(ДатаПочатку)-2)+{0;1;2;3;4;5}*7 +{1,2,3,4,5,6,7}-3+COLUMN(C1)","v":"2016-06-28"},null,null,{"$f":"ДатаПочатку-(WEEKDAY(ДатаПочатку)-2)+{0;1;2;3;4;5}*7 +{1,2,3,4,5,6,7}-3+COLUMN(D1)","v":"2016-06-29"},null,null,{"$f":"ДатаПочатку-(WEEKDAY(ДатаПочатку)-2)+{0;1;2;3;4;5}*7 +{1,2,3,4,5,6,7}-3+COLUMN(E1)","v":"2016-06-30"},null,null,{"$f":"ДатаПочатку-(WEEKDAY(ДатаПочатку)-2)+{0;1;2;3;4;5}*7 +{1,2,3,4,5,6,7}-3+COLUMN(F1)","v":"2016-07-01"},null,null,{"$f":"ДатаПочатку-(WEEKDAY(ДатаПочатку)-2)+{0;1;2;3;4;5}*7 +{1,2,3,4,5,6,7}-3+COLUMN(G1)","v":"2016-07-02"},null,null,{"$f":"ДатаПочатку-(WEEKDAY(ДатаПочатку)-2)+{0;1;2;3;4;5}*7 +{1,2,3,4,5,6,7}-3+COLUMN(H1)","v":"2016-07-03"}]
[null,null,{"$f":"IFERROR(INDEX(Заходивтаблиці[],SMALL(IF(Дати=C$6,ROW(Дати)),ROW(1:1))-ПочатковийРядокТаблиці,4),\"\")","v":""},null,null,{"$f":"IFERROR(INDEX(Заходивтаблиці[],SMALL(IF(Дати=F$6,ROW(Дати)),ROW(1:1))-ПочатковийРядокТаблиці,4),\"\")","v":""},null,null,{"$f":"IFERROR(INDEX(Заходивтаблиці[],SMALL(IF(Дати=I$6,ROW(Дати)),ROW(1:1))-ПочатковийРядокТаблиці,4),\"\")","v":""},null,null,{"$f":"IFERROR(INDEX(Заходивтаблиці[],SMALL(IF(Дати=L$6,ROW(Дати)),ROW(1:1))-ПочатковийРядокТаблиці,4),\"\")","v":""},null,null,{"$f":"IFERROR(INDEX(Заходивтаблиці[],SMALL(IF(Дати=O$6,ROW(Дати)),ROW(1:1))-ПочатковийРядокТаблиці,4),\"\")","v":"Озеленення міста"},null,null,{"$f":"IFERROR(INDEX(Заходивтаблиці[],SMALL(IF(Дати=R$6,ROW(Дати)),ROW(1:1))-ПочатковийРядокТаблиці,4),\"\")","v":"Озеленення міста"},null,null,{"$f":"IFERROR(INDEX(Заходивтаблиці[],SMALL(IF(Дати=U$6,ROW(Дати)),ROW(1:1))-ПочатковийРядокТаблиці,4),\"\")","v":"Вечір кіно в парку"}]
[null,null,{"$f":"IFERROR(INDEX(Заходивтаблиці[],SMALL(IF(Дати=C$6,ROW(Дати)),ROW(2:2))-ПочатковийРядокТаблиці,4),\"\")","v":""},null,null,{"$f":"IFERROR(INDEX(Заходивтаблиці[],SMALL(IF(Дати=F$6,ROW(Дати)),ROW(2:2))-ПочатковийРядокТаблиці,4),\"\")","v":""},null,null,{"$f":"IFERROR(INDEX(Заходивтаблиці[],SMALL(IF(Дати=I$6,ROW(Дати)),ROW(2:2))-ПочатковийРядокТаблиці,4),\"\")","v":""},null,null,{"$f":"IFERROR(INDEX(Заходивтаблиці[],SMALL(IF(Дати=L$6,ROW(Дати)),ROW(2:2))-ПочатковийРядокТаблиці,4),\"\")","v":""},null,null,{"$f":"IFERROR(INDEX(Заходивтаблиці[],SMALL(IF(Дати=O$6,ROW(Дати)),ROW(2:2))-ПочатковийРядокТаблиці,4),\"\")","v":"Засідання міськради"},null,null,{"$f":"IFERROR(INDEX(Заходивтаблиці[],SMALL(IF(Дати=R$6,ROW(Дати)),ROW(2:2))-ПочатковийРядокТаблиці,4),\"\")","v":""},null,null,{"$f":"IFERROR(INDEX(Заходивтаблиці[],SMALL(IF(Дати=U$6,ROW(Дати)),ROW(2:2))-ПочатковийРядокТаблиці,4),\"\")","v":""}]
[null,null,{"$f":"IFERROR(INDEX(Заходивтаблиці[],SMALL(IF(Дати=C$6,ROW(Дати)),ROW(3:3))-ПочатковийРядокТаблиці,4),\"\")","v":""},null,null,{"$f":"IFERROR(INDEX(Заходивтаблиці[],SMALL(IF(Дати=F$6,ROW(Дати)),ROW(3:3))-ПочатковийРядокТаблиці,4),\"\")","v":""},null,null,{"$f":"IFERROR(INDEX(Заходивтаблиці[],SMALL(IF(Дати=I$6,ROW(Дати)),ROW(3:3))-ПочатковийРядокТаблиці,4),\"\")","v":""},null,null,{"$f":"IFERROR(INDEX(Заходивтаблиці[],SMALL(IF(Дати=L$6,ROW(Дати)),ROW(3:3))-ПочатковийРядокТаблиці,4),\"\")","v":""},null,null,{"$f":"IFERROR(INDEX(Заходивтаблиці[],SMALL(IF(Дати=O$6,ROW(Дати)),ROW(3:3))-ПочатковийРядокТаблиці,4),\"\")","v":""},null,null,{"$f":"IFERROR(INDEX(Заходивтаблиці[],SMALL(IF(Дати=R$6,ROW(Дати)),ROW(3:3))-ПочатковийРядокТаблиці,4),\"\")","v":""},null,null,{"$f":"IFERROR(INDEX(Заходивтаблиці[],SMALL(IF(Дати=U$6,ROW(Дати)),ROW(3:3))-ПочатковийРядокТаблиці,4),\"\")","v":""}]
[null,null,{"$f":"IFERROR(INDEX(Заходивтаблиці[],SMALL(IF(Дати=C$6,ROW(Дати)),ROW(4:4))-ПочатковийРядокТаблиці,4),\"\")","v":""},null,null,{"$f":"IFERROR(INDEX(Заходивтаблиці[],SMALL(IF(Дати=F$6,ROW(Дати)),ROW(4:4))-ПочатковийРядокТаблиці,4),\"\")","v":""},null,null,{"$f":"IFERROR(INDEX(Заходивтаблиці[],SMALL(IF(Дати=I$6,ROW(Дати)),ROW(4:4))-ПочатковийРядокТаблиці,4),\"\")","v":""},null,null,{"$f":"IFERROR(INDEX(Заходивтаблиці[],SMALL(IF(Дати=L$6,ROW(Дати)),ROW(4:4))-ПочатковийРядокТаблиці,4),\"\")","v":""},null,null,{"$f":"IFERROR(INDEX(Заходивтаблиці[],SMALL(IF(Дати=O$6,ROW(Дати)),ROW(4:4))-ПочатковийРядокТаблиці,4),\"\")","v":""},null,null,{"$f":"IFERROR(INDEX(Заходивтаблиці[],SMALL(IF(Дати=R$6,ROW(Дати)),ROW(4:4))-ПочатковийРядокТаблиці,4),\"\")","v":""},null,null,{"$f":"IFERROR(INDEX(Заходивтаблиці[],SMALL(IF(Дати=U$6,ROW(Дати)),ROW(4:4))-ПочатковийРядокТаблиці,4),\"\")","v":""}]
[null,null,{"$f":"U6+1","v":"2016-07-04"},null,null,{"$f":"C11+1","v":"2016-07-05"},null,null,{"$f":"F11+1","v":"2016-07-06"},null,null,{"$f":"I11+1","v":"2016-07-07"},null,null,{"$f":"L11+1","v":"2016-07-08"},null,null,{"$f":"O11+1","v":"2016-07-09"},null,null,{"$f":"R11+1","v":"2016-07-10"}]
[null,null,{"$f":"IFERROR(INDEX(Заходивтаблиці[],SMALL(IF(Дати=C$11,ROW(Дати)),ROW(1:1))-ПочатковийРядокТаблиці,4),\"\")","v":""},null,null,{"$f":"IFERROR(INDEX(Заходивтаблиці[],SMALL(IF(Дати=F$11,ROW(Дати)),ROW(1:1))-ПочатковийРядокТаблиці,4),\"\")","v":""},null,null,{"$f":"IFERROR(INDEX(Заходивтаблиці[],SMALL(IF(Дати=I$11,ROW(Дати)),ROW(1:1))-ПочатковийРядокТаблиці,4),\"\")","v":""},null,null,{"$f":"IFERROR(INDEX(Заходивтаблиці[],SMALL(IF(Дати=L$11,ROW(Дати)),ROW(1:1))-ПочатковийРядокТаблиці,4),\"\")","v":""},null,null,{"$f":"IFERROR(INDEX(Заходивтаблиці[],SMALL(IF(Дати=O$11,ROW(Дати)),ROW(1:1))-ПочатковийРядокТаблиці,4),\"\")","v":"Засідання міськради"},null,null,{"$f":"IFERROR(INDEX(Заходивтаблиці[],SMALL(IF(Дати=R$11,ROW(Дати)),ROW(1:1))-ПочатковийРядокТаблиці,4),\"\")","v":""},null,null,{"$f":"IFERROR(INDEX(Заходивтаблиці[],SMALL(IF(Дати=U$11,ROW(Дати)),ROW(1:1))-ПочатковийРядокТаблиці,4),\"\")","v":""}]
[null,null,{"$f":"IFERROR(INDEX(Заходивтаблиці[],SMALL(IF(Дати=C$11,ROW(Дати)),ROW(2:2))-ПочатковийРядокТаблиці,4),\"\")","v":""},null,null,{"$f":"IFERROR(INDEX(Заходивтаблиці[],SMALL(IF(Дати=F$11,ROW(Дати)),ROW(2:2))-ПочатковийРядокТаблиці,4),\"\")","v":""},null,null,{"$f":"IFERROR(INDEX(Заходивтаблиці[],SMALL(IF(Дати=I$11,ROW(Дати)),ROW(2:2))-ПочатковийРядокТаблиці,4),\"\")","v":""},null,null,{"$f":"IFERROR(INDEX(Заходивтаблиці[],SMALL(IF(Дати=L$11,ROW(Дати)),ROW(2:2))-ПочатковийРядокТаблиці,4),\"\")","v":""},null,null,{"$f":"IFERROR(INDEX(Заходивтаблиці[],SMALL(IF(Дати=O$11,ROW(Дати)),ROW(2:2))-ПочатковийРядокТаблиці,4),\"\")","v":""},null,null,{"$f":"IFERROR(INDEX(Заходивтаблиці[],SMALL(IF(Дати=R$11,ROW(Дати)),ROW(2:2))-ПочатковийРядокТаблиці,4),\"\")","v":""},null,null,{"$f":"IFERROR(INDEX(Заходивтаблиці[],SMALL(IF(Дати=U$11,ROW(Дати)),ROW(2:2))-ПочатковийРядокТаблиці,4),\"\")","v":""}]
[null,null,{"$f":"IFERROR(INDEX(Заходивтаблиці[],SMALL(IF(Дати=C$11,ROW(Дати)),ROW(3:3))-ПочатковийРядокТаблиці,4),\"\")","v":""},null,null,{"$f":"IFERROR(INDEX(Заходивтаблиці[],SMALL(IF(Дати=F$11,ROW(Дати)),ROW(3:3))-ПочатковийРядокТаблиці,4),\"\")","v":""},null,null,{"$f":"IFERROR(INDEX(Заходивтаблиці[],SMALL(IF(Дати=I$11,ROW(Дати)),ROW(3:3))-ПочатковийРядокТаблиці,4),\"\")","v":""},null,null,{"$f":"IFERROR(INDEX(Заходивтаблиці[],SMALL(IF(Дати=L$11,ROW(Дати)),ROW(3:3))-ПочатковийРядокТаблиці,4),\"\")","v":""},null,null,{"$f":"IFERROR(INDEX(Заходивтаблиці[],SMALL(IF(Дати=O$11,ROW(Дати)),ROW(3:3))-ПочатковийРядокТаблиці,4),\"\")","v":""},null,null,{"$f":"IFERROR(INDEX(Заходивтаблиці[],SMALL(IF(Дати=R$11,ROW(Дати)),ROW(3:3))-ПочатковийРядокТаблиці,4),\"\")","v":""},null,null,{"$f":"IFERROR(INDEX(Заходивтаблиці[],SMALL(IF(Дати=U$11,ROW(Дати)),ROW(3:3))-ПочатковийРядокТаблиці,4),\"\")","v":""}]
[null,null,{"$f":"IFERROR(INDEX(Заходивтаблиці[],SMALL(IF(Дати=C$11,ROW(Дати)),ROW(4:4))-ПочатковийРядокТаблиці,4),\"\")","v":""},null,null,{"$f":"IFERROR(INDEX(Заходивтаблиці[],SMALL(IF(Дати=F$11,ROW(Дати)),ROW(4:4))-ПочатковийРядокТаблиці,4),\"\")","v":""},null,null,{"$f":"IFERROR(INDEX(Заходивтаблиці[],SMALL(IF(Дати=I$11,ROW(Дати)),ROW(4:4))-ПочатковийРядокТаблиці,4),\"\")","v":""},null,null,{"$f":"IFERROR(INDEX(Заходивтаблиці[],SMALL(IF(Дати=L$11,ROW(Дати)),ROW(4:4))-ПочатковийРядокТаблиці,4),\"\")","v":""},null,null,{"$f":"IFERROR(INDEX(Заходивтаблиці[],SMALL(IF(Дати=O$11,ROW(Дати)),ROW(4:4))-ПочатковийРядокТаблиці,4),\"\")","v":""},null,null,{"$f":"IFERROR(INDEX(Заходивтаблиці[],SMALL(IF(Дати=R$11,ROW(Дати)),ROW(4:4))-ПочатковийРядокТаблиці,4),\"\")","v":""},null,null,{"$f":"IFERROR(INDEX(Заходивтаблиці[],SMALL(IF(Дати=U$11,ROW(Дати)),ROW(4:4))-ПочатковийРядокТаблиці,4),\"\")","v":""}]
[null,null,{"$f":"U11+1","v":"2016-07-11"},null,null,{"$f":"C16+1","v":"2016-07-12"},null,null,{"$f":"F16+1","v":"2016-07-13"},null,null,{"$f":"I16+1","v":"2016-07-14"},null,null,{"$f":"L16+1","v":"2016-07-15"},null,null,{"$f":"O16+1","v":"2016-07-16"},null,null,{"$f":"R16+1","v":"2016-07-17"}]
[null,null,{"$f":"IFERROR(INDEX(Заходивтаблиці[],SMALL(IF(Дати=C$16,ROW(Дати)),ROW(1:1))-ПочатковийРядокТаблиці,4),\"\")","v":"Офіційний обід у торговій палаті"},null,null,{"$f":"IFERROR(INDEX(Заходивтаблиці[],SMALL(IF(Дати=F$16,ROW(Дати)),ROW(1:1))-ПочатковийРядокТаблиці,4),\"\")","v":"Виставка пам’яток старовини"},null,null,{"$f":"IFERROR(INDEX(Заходивтаблиці[],SMALL(IF(Дати=I$16,ROW(Дати)),ROW(1:1))-ПочатковийРядокТаблиці,4),\"\")","v":""},null,null,{"$f":"IFERROR(INDEX(Заходивтаблиці[],SMALL(IF(Дати=L$16,ROW(Дати)),ROW(1:1))-ПочатковийРядокТаблиці,4),\"\")","v":"Семінар для городян"},null,null,{"$f":"IFERROR(INDEX(Заходивтаблиці[],SMALL(IF(Дати=O$16,ROW(Дати)),ROW(1:1))-ПочатковийРядокТаблиці,4),\"\")","v":"Засідання міськради"},null,null,{"$f":"IFERROR(INDEX(Заходивтаблиці[],SMALL(IF(Дати=R$16,ROW(Дати)),ROW(1:1))-ПочатковийРядокТаблиці,4),\"\")","v":""},null,null,{"$f":"IFERROR(INDEX(Заходивтаблиці[],SMALL(IF(Дати=U$16,ROW(Дати)),ROW(1:1))-ПочатковийРядокТаблиці,4),\"\")","v":""}]
[null,null,{"$f":"IFERROR(INDEX(Заходивтаблиці[],SMALL(IF(Дати=C$16,ROW(Дати)),ROW(2:2))-ПочатковийРядокТаблиці,4),\"\")","v":""},null,null,{"$f":"IFERROR(INDEX(Заходивтаблиці[],SMALL(IF(Дати=F$16,ROW(Дати)),ROW(2:2))-ПочатковийРядокТаблиці,4),\"\")","v":""},null,null,{"$f":"IFERROR(INDEX(Заходивтаблиці[],SMALL(IF(Дати=I$16,ROW(Дати)),ROW(2:2))-ПочатковийРядокТаблиці,4),\"\")","v":""},null,null,{"$f":"IFERROR(INDEX(Заходивтаблиці[],SMALL(IF(Дати=L$16,ROW(Дати)),ROW(2:2))-ПочатковийРядокТаблиці,4),\"\")","v":""},null,null,{"$f":"IFERROR(INDEX(Заходивтаблиці[],SMALL(IF(Дати=O$16,ROW(Дати)),ROW(2:2))-ПочатковийРядокТаблиці,4),\"\")","v":""},null,null,{"$f":"IFERROR(INDEX(Заходивтаблиці[],SMALL(IF(Дати=R$16,ROW(Дати)),ROW(2:2))-ПочатковийРядокТаблиці,4),\"\")","v":""},null,null,{"$f":"IFERROR(INDEX(Заходивтаблиці[],SMALL(IF(Дати=U$16,ROW(Дати)),ROW(2:2))-ПочатковийРядокТаблиці,4),\"\")","v":""}]
[null,null,{"$f":"IFERROR(INDEX(Заходивтаблиці[],SMALL(IF(Дати=C$16,ROW(Дати)),ROW(3:3))-ПочатковийРядокТаблиці,4),\"\")","v":""},null,null,{"$f":"IFERROR(INDEX(Заходивтаблиці[],SMALL(IF(Дати=F$16,ROW(Дати)),ROW(3:3))-ПочатковийРядокТаблиці,4),\"\")","v":""},null,null,{"$f":"IFERROR(INDEX(Заходивтаблиці[],SMALL(IF(Дати=I$16,ROW(Дати)),ROW(3:3))-ПочатковийРядокТаблиці,4),\"\")","v":""},null,null,{"$f":"IFERROR(INDEX(Заходивтаблиці[],SMALL(IF(Дати=L$16,ROW(Дати)),ROW(3:3))-ПочатковийРядокТаблиці,4),\"\")","v":""},null,null,{"$f":"IFERROR(INDEX(Заходивтаблиці[],SMALL(IF(Дати=O$16,ROW(Дати)),ROW(3:3))-ПочатковийРядокТаблиці,4),\"\")","v":""},null,null,{"$f":"IFERROR(INDEX(Заходивтаблиці[],SMALL(IF(Дати=R$16,ROW(Дати)),ROW(3:3))-ПочатковийРядокТаблиці,4),\"\")","v":""},null,null,{"$f":"IFERROR(INDEX(Заходивтаблиці[],SMALL(IF(Дати=U$16,ROW(Дати)),ROW(3:3))-ПочатковийРядокТаблиці,4),\"\")","v":""}]
[null,null,{"$f":"IFERROR(INDEX(Заходивтаблиці[],SMALL(IF(Дати=C$16,ROW(Дати)),ROW(4:4))-ПочатковийРядокТаблиці,4),\"\")","v":""},null,null,{"$f":"IFERROR(INDEX(Заходивтаблиці[],SMALL(IF(Дати=F$16,ROW(Дати)),ROW(4:4))-ПочатковийРядокТаблиці,4),\"\")","v":""},null,null,{"$f":"IFERROR(INDEX(Заходивтаблиці[],SMALL(IF(Дати=I$16,ROW(Дати)),ROW(4:4))-ПочатковийРядокТаблиці,4),\"\")","v":""},null,null,{"$f":"IFERROR(INDEX(Заходивтаблиці[],SMALL(IF(Дати=L$16,ROW(Дати)),ROW(4:4))-ПочатковийРядокТаблиці,4),\"\")","v":""},null,null,{"$f":"IFERROR(INDEX(Заходивтаблиці[],SMALL(IF(Дати=O$16,ROW(Дати)),ROW(4:4))-ПочатковийРядокТаблиці,4),\"\")","v":""},null,null,{"$f":"IFERROR(INDEX(Заходивтаблиці[],SMALL(IF(Дати=R$16,ROW(Дати)),ROW(4:4))-ПочатковийРядокТаблиці,4),\"\")","v":""},null,null,{"$f":"IFERROR(INDEX(Заходивтаблиці[],SMALL(IF(Дати=U$16,ROW(Дати)),ROW(4:4))-ПочатковийРядокТаблиці,4),\"\")","v":""}]
[null,null,{"$f":"U16+1","v":"2016-07-18"},null,null,{"$f":"C21+1","v":"2016-07-19"},null,null,{"$f":"F21+1","v":"2016-07-20"},null,null,{"$f":"I21+1","v":"2016-07-21"},null,null,{"$f":"L21+1","v":"2016-07-22"},null,null,{"$f":"O21+1","v":"2016-07-23"},null,null,{"$f":"R21+1","v":"2016-07-24"}]
[null,null,{"$f":"IFERROR(INDEX(Заходивтаблиці[],SMALL(IF(Дати=C$21,ROW(Дати)),ROW(1:1))-ПочатковийРядокТаблиці,4),\"\")","v":""},null,null,{"$f":"IFERROR(INDEX(Заходивтаблиці[],SMALL(IF(Дати=F$21,ROW(Дати)),ROW(1:1))-ПочатковийРядокТаблиці,4),\"\")","v":"Семінар зі стратегічного планування"},null,null,{"$f":"IFERROR(INDEX(Заходивтаблиці[],SMALL(IF(Дати=I$21,ROW(Дати)),ROW(1:1))-ПочатковийРядокТаблиці,4),\"\")","v":"Прибирання парку"},null,null,{"$f":"IFERROR(INDEX(Заходивтаблиці[],SMALL(IF(Дати=L$21,ROW(Дати)),ROW(1:1))-ПочатковийРядокТаблиці,4),\"\")","v":""},null,null,{"$f":"IFERROR(INDEX(Заходивтаблиці[],SMALL(IF(Дати=O$21,ROW(Дати)),ROW(1:1))-ПочатковийРядокТаблиці,4),\"\")","v":"Засідання міськради"},null,null,{"$f":"IFERROR(INDEX(Заходивтаблиці[],SMALL(IF(Дати=R$21,ROW(Дати)),ROW(1:1))-ПочатковийРядокТаблиці,4),\"\")","v":""},null,null,{"$f":"IFERROR(INDEX(Заходивтаблиці[],SMALL(IF(Дати=U$21,ROW(Дати)),ROW(1:1))-ПочатковийРядокТаблиці,4),\"\")","v":""}]
[null,null,{"$f":"IFERROR(INDEX(Заходивтаблиці[],SMALL(IF(Дати=C$21,ROW(Дати)),ROW(2:2))-ПочатковийРядокТаблиці,4),\"\")","v":""},null,null,{"$f":"IFERROR(INDEX(Заходивтаблиці[],SMALL(IF(Дати=F$21,ROW(Дати)),ROW(2:2))-ПочатковийРядокТаблиці,4),\"\")","v":""},null,null,{"$f":"IFERROR(INDEX(Заходивтаблиці[],SMALL(IF(Дати=I$21,ROW(Дати)),ROW(2:2))-ПочатковийРядокТаблиці,4),\"\")","v":""},null,null,{"$f":"IFERROR(INDEX(Заходивтаблиці[],SMALL(IF(Дати=L$21,ROW(Дати)),ROW(2:2))-ПочатковийРядокТаблиці,4),\"\")","v":""},null,null,{"$f":"IFERROR(INDEX(Заходивтаблиці[],SMALL(IF(Дати=O$21,ROW(Дати)),ROW(2:2))-ПочатковийРядокТаблиці,4),\"\")","v":""},null,null,{"$f":"IFERROR(INDEX(Заходивтаблиці[],SMALL(IF(Дати=R$21,ROW(Дати)),ROW(2:2))-ПочатковийРядокТаблиці,4),\"\")","v":""},null,null,{"$f":"IFERROR(INDEX(Заходивтаблиці[],SMALL(IF(Дати=U$21,ROW(Дати)),ROW(2:2))-ПочатковийРядокТаблиці,4),\"\")","v":""}]
[null,null,{"$f":"IFERROR(INDEX(Заходивтаблиці[],SMALL(IF(Дати=C$21,ROW(Дати)),ROW(3:3))-ПочатковийРядокТаблиці,4),\"\")","v":""},null,null,{"$f":"IFERROR(INDEX(Заходивтаблиці[],SMALL(IF(Дати=F$21,ROW(Дати)),ROW(3:3))-ПочатковийРядокТаблиці,4),\"\")","v":""},null,null,{"$f":"IFERROR(INDEX(Заходивтаблиці[],SMALL(IF(Дати=I$21,ROW(Дати)),ROW(3:3))-ПочатковийРядокТаблиці,4),\"\")","v":""},null,null,{"$f":"IFERROR(INDEX(Заходивтаблиці[],SMALL(IF(Дати=L$21,ROW(Дати)),ROW(3:3))-ПочатковийРядокТаблиці,4),\"\")","v":""},null,null,{"$f":"IFERROR(INDEX(Заходивтаблиці[],SMALL(IF(Дати=O$21,ROW(Дати)),ROW(3:3))-ПочатковийРядокТаблиці,4),\"\")","v":""},null,null,{"$f":"IFERROR(INDEX(Заходивтаблиці[],SMALL(IF(Дати=R$21,ROW(Дати)),ROW(3:3))-ПочатковийРядокТаблиці,4),\"\")","v":""},null,null,{"$f":"IFERROR(INDEX(Заходивтаблиці[],SMALL(IF(Дати=U$21,ROW(Дати)),ROW(3:3))-ПочатковийРядокТаблиці,4),\"\")","v":""}]
[null,null,{"$f":"IFERROR(INDEX(Заходивтаблиці[],SMALL(IF(Дати=C$21,ROW(Дати)),ROW(4:4))-ПочатковийРядокТаблиці,4),\"\")","v":""},null,null,{"$f":"IFERROR(INDEX(Заходивтаблиці[],SMALL(IF(Дати=F$21,ROW(Дати)),ROW(4:4))-ПочатковийРядокТаблиці,4),\"\")","v":""},null,null,{"$f":"IFERROR(INDEX(Заходивтаблиці[],SMALL(IF(Дати=I$21,ROW(Дати)),ROW(4:4))-ПочатковийРядокТаблиці,4),\"\")","v":""},null,null,{"$f":"IFERROR(INDEX(Заходивтаблиці[],SMALL(IF(Дати=L$21,ROW(Дати)),ROW(4:4))-ПочатковийРядокТаблиці,4),\"\")","v":""},null,null,{"$f":"IFERROR(INDEX(Заходивтаблиці[],SMALL(IF(Дати=O$21,ROW(Дати)),ROW(4:4))-ПочатковийРядокТаблиці,4),\"\")","v":""},null,null,{"$f":"IFERROR(INDEX(Заходивтаблиці[],SMALL(IF(Дати=R$21,ROW(Дати)),ROW(4:4))-ПочатковийРядокТаблиці,4),\"\")","v":""},null,null,{"$f":"IFERROR(INDEX(Заходивтаблиці[],SMALL(IF(Дати=U$21,ROW(Дати)),ROW(4:4))-ПочатковийРядокТаблиці,4),\"\")","v":""}]
[null,null,{"$f":"U21+1","v":"2016-07-25"},null,null,{"$f":"C26+1","v":"2016-07-26"},null,null,{"$f":"F26+1","v":"2016-07-27"},null,null,{"$f":"I26+1","v":"2016-07-28"},null,null,{"$f":"L26+1","v":"2016-07-29"},null,null,{"$f":"O26+1","v":"2016-07-30"},null,null,{"$f":"R26+1","v":"2016-07-31"}]
[null,null,{"$f":"IFERROR(INDEX(Заходивтаблиці[],SMALL(IF(Дати=C$26,ROW(Дати)),ROW(1:1))-ПочатковийРядокТаблиці,4),\"\")","v":""},null,null,{"$f":"IFERROR(INDEX(Заходивтаблиці[],SMALL(IF(Дати=F$26,ROW(Дати)),ROW(1:1))-ПочатковийРядокТаблиці,4),\"\")","v":"Пішохідна екскурсія центром міста"},null,null,{"$f":"IFERROR(INDEX(Заходивтаблиці[],SMALL(IF(Дати=I$26,ROW(Дати)),ROW(1:1))-ПочатковийРядокТаблиці,4),\"\")","v":""},null,null,{"$f":"IFERROR(INDEX(Заходивтаблиці[],SMALL(IF(Дати=L$26,ROW(Дати)),ROW(1:1))-ПочатковийРядокТаблиці,4),\"\")","v":""},null,null,{"$f":"IFERROR(INDEX(Заходивтаблиці[],SMALL(IF(Дати=O$26,ROW(Дати)),ROW(1:1))-ПочатковийРядокТаблиці,4),\"\")","v":"Засідання міськради"},null,null,{"$f":"IFERROR(INDEX(Заходивтаблиці[],SMALL(IF(Дати=R$26,ROW(Дати)),ROW(1:1))-ПочатковийРядокТаблиці,4),\"\")","v":""},null,null,{"$f":"IFERROR(INDEX(Заходивтаблиці[],SMALL(IF(Дати=U$26,ROW(Дати)),ROW(1:1))-ПочатковийРядокТаблиці,4),\"\")","v":""}]
[null,null,{"$f":"IFERROR(INDEX(Заходивтаблиці[],SMALL(IF(Дати=C$26,ROW(Дати)),ROW(2:2))-ПочатковийРядокТаблиці,4),\"\")","v":""},null,null,{"$f":"IFERROR(INDEX(Заходивтаблиці[],SMALL(IF(Дати=F$26,ROW(Дати)),ROW(2:2))-ПочатковийРядокТаблиці,4),\"\")","v":"Відвідування кафе та ресторанів"},null,null,{"$f":"IFERROR(INDEX(Заходивтаблиці[],SMALL(IF(Дати=I$26,ROW(Дати)),ROW(2:2))-ПочатковийРядокТаблиці,4),\"\")","v":""},null,null,{"$f":"IFERROR(INDEX(Заходивтаблиці[],SMALL(IF(Дати=L$26,ROW(Дати)),ROW(2:2))-ПочатковийРядокТаблиці,4),\"\")","v":""},null,null,{"$f":"IFERROR(INDEX(Заходивтаблиці[],SMALL(IF(Дати=O$26,ROW(Дати)),ROW(2:2))-ПочатковийРядокТаблиці,4),\"\")","v":""},null,null,{"$f":"IFERROR(INDEX(Заходивтаблиці[],SMALL(IF(Дати=R$26,ROW(Дати)),ROW(2:2))-ПочатковийРядокТаблиці,4),\"\")","v":""},null,null,{"$f":"IFERROR(INDEX(Заходивтаблиці[],SMALL(IF(Дати=U$26,ROW(Дати)),ROW(2:2))-ПочатковийРядокТаблиці,4),\"\")","v":""}]
[null,null,{"$f":"IFERROR(INDEX(Заходивтаблиці[],SMALL(IF(Дати=C$26,ROW(Дати)),ROW(3:3))-ПочатковийРядокТаблиці,4),\"\")","v":""},null,null,{"$f":"IFERROR(INDEX(Заходивтаблиці[],SMALL(IF(Дати=F$26,ROW(Дати)),ROW(3:3))-ПочатковийРядокТаблиці,4),\"\")","v":""},null,null,{"$f":"IFERROR(INDEX(Заходивтаблиці[],SMALL(IF(Дати=I$26,ROW(Дати)),ROW(3:3))-ПочатковийРядокТаблиці,4),\"\")","v":""},null,null,{"$f":"IFERROR(INDEX(Заходивтаблиці[],SMALL(IF(Дати=L$26,ROW(Дати)),ROW(3:3))-ПочатковийРядокТаблиці,4),\"\")","v":""},null,null,{"$f":"IFERROR(INDEX(Заходивтаблиці[],SMALL(IF(Дати=O$26,ROW(Дати)),ROW(3:3))-ПочатковийРядокТаблиці,4),\"\")","v":""},null,null,{"$f":"IFERROR(INDEX(Заходивтаблиці[],SMALL(IF(Дати=R$26,ROW(Дати)),ROW(3:3))-ПочатковийРядокТаблиці,4),\"\")","v":""},null,null,{"$f":"IFERROR(INDEX(Заходивтаблиці[],SMALL(IF(Дати=U$26,ROW(Дати)),ROW(3:3))-ПочатковийРядокТаблиці,4),\"\")","v":""}]
[null,null,{"$f":"IFERROR(INDEX(Заходивтаблиці[],SMALL(IF(Дати=C$26,ROW(Дати)),ROW(4:4))-ПочатковийРядокТаблиці,4),\"\")","v":""},null,null,{"$f":"IFERROR(INDEX(Заходивтаблиці[],SMALL(IF(Дати=F$26,ROW(Дати)),ROW(4:4))-ПочатковийРядокТаблиці,4),\"\")","v":""},null,null,{"$f":"IFERROR(INDEX(Заходивтаблиці[],SMALL(IF(Дати=I$26,ROW(Дати)),ROW(4:4))-ПочатковийРядокТаблиці,4),\"\")","v":""},null,null,{"$f":"IFERROR(INDEX(Заходивтаблиці[],SMALL(IF(Дати=L$26,ROW(Дати)),ROW(4:4))-ПочатковийРядокТаблиці,4),\"\")","v":""},null,null,{"$f":"IFERROR(INDEX(Заходивтаблиці[],SMALL(IF(Дати=O$26,ROW(Дати)),ROW(4:4))-ПочатковийРядокТаблиці,4),\"\")","v":""},null,null,{"$f":"IFERROR(INDEX(Заходивтаблиці[],SMALL(IF(Дати=R$26,ROW(Дати)),ROW(4:4))-ПочатковийРядокТаблиці,4),\"\")","v":""},null,null,{"$f":"IFERROR(INDEX(Заходивтаблиці[],SMALL(IF(Дати=U$26,ROW(Дати)),ROW(4:4))-ПочатковийРядокТаблиці,4),\"\")","v":""}]
[null,null,{"$f":"U26+1","v":"2016-08-01"},null,null,{"$f":"C31+1","v":"2016-08-02"},null,null,"НОТАТКИ."]
[null,null,{"$f":"IFERROR(INDEX(Заходивтаблиці[],SMALL(IF(Дати=C$31,ROW(Дати)),ROW(1:1))-ПочатковийРядокТаблиці,4),\"\")","v":""},null,null,{"$f":"IFERROR(INDEX(Заходивтаблиці[],SMALL(IF(Дати=F$31,ROW(Дати)),ROW(1:1))-ПочатковийРядокТаблиці,4),\"\")","v":""}]
[null,null,{"$f":"IFERROR(INDEX(Заходивтаблиці[],SMALL(IF(Дати=C$31,ROW(Дати)),ROW(2:2))-ПочатковийРядокТаблиці,4),\"\")","v":""},null,null,{"$f":"IFERROR(INDEX(Заходивтаблиці[],SMALL(IF(Дати=F$31,ROW(Дати)),ROW(2:2))-ПочатковийРядокТаблиці,4),\"\")","v":""}]
[null,null,{"$f":"IFERROR(INDEX(Заходивтаблиці[],SMALL(IF(Дати=C$31,ROW(Дати)),ROW(3:3))-ПочатковийРядокТаблиці,4),\"\")","v":""},null,null,{"$f":"IFERROR(INDEX(Заходивтаблиці[],SMALL(IF(Дати=F$31,ROW(Дати)),ROW(3:3))-ПочатковийРядокТаблиці,4),\"\")","v":""}]
[null,null,{"$f":"IFERROR(INDEX(Заходивтаблиці[],SMALL(IF(Дати=C$31,ROW(Дати)),ROW(4:4))-ПочатковийРядокТаблиці,4),\"\")","v":""},null,null,{"$f":"IFERROR(INDEX(Заходивтаблиці[],SMALL(IF(Дати=F$31,ROW(Дати)),ROW(4:4))-ПочатковийРядокТаблиці,4),\"\")","v":""}]

{"sheet":"ВЕРСІЯ ДЛЯ ДРУКУ","index":2,"n_rows":35,"n_cols":21,"rows_kept":35,"merged":[[1,5,1,11],[30,8,34,20]]}
[]
[null,null,{"$f":"ПереглядРоку","v":2016},null,null,{"$f":"ПереглядМісяця","v":"ЛИПЕНЬ"},0,0,0,0,0,0]
[]
[null,null,"ПН",null,null,"ВТ",null,null,"СР",null,null,"ЧТ",null,null,"ПТ",null,null,"СБ",null,null,"НД"]
[]
[null,null,{"$f":"КАЛЕНДАР!C6","v":"2016-06-27"},{"$f":"КАЛЕНДАР!D6","v":0},{"$f":"КАЛЕНДАР!E6","v":0},{"$f":"КАЛЕНДАР!F6","v":"2016-06-28"},{"$f":"КАЛЕНДАР!G6","v":0},{"$f":"КАЛЕНДАР!H6","v":0},{"$f":"КАЛЕНДАР!I6","v":"2016-06-29"},{"$f":"КАЛЕНДАР!J6","v":0},{"$f":"КАЛЕНДАР!K6","v":0},{"$f":"КАЛЕНДАР!L6","v":"2016-06-30"},{"$f":"КАЛЕНДАР!M6","v":0},{"$f":"КАЛЕНДАР!N6","v":0},{"$f":"КАЛЕНДАР!O6","v":"2016-07-01"},{"$f":"КАЛЕНДАР!P6","v":0},{"$f":"КАЛЕНДАР!Q6","v":0},{"$f":"КАЛЕНДАР!R6","v":"2016-07-02"},{"$f":"КАЛЕНДАР!S6","v":0},{"$f":"КАЛЕНДАР!T6","v":0},{"$f":"КАЛЕНДАР!U6","v":"2016-07-03"}]
[null,null,{"$f":"КАЛЕНДАР!C7","v":""},{"$f":"КАЛЕНДАР!D7","v":0},{"$f":"КАЛЕНДАР!E7","v":0},{"$f":"КАЛЕНДАР!F7","v":""},{"$f":"КАЛЕНДАР!G7","v":0},{"$f":"КАЛЕНДАР!H7","v":0},{"$f":"КАЛЕНДАР!I7","v":""},{"$f":"КАЛЕНДАР!J7","v":0},{"$f":"КАЛЕНДАР!K7","v":0},{"$f":"КАЛЕНДАР!L7","v":""},{"$f":"КАЛЕНДАР!M7","v":0},{"$f":"КАЛЕНДАР!N7","v":0},{"$f":"КАЛЕНДАР!O7","v":"Озеленення міста"},{"$f":"КАЛЕНДАР!P7","v":0},{"$f":"КАЛЕНДАР!Q7","v":0},{"$f":"КАЛЕНДАР!R7","v":"Озеленення міста"},{"$f":"КАЛЕНДАР!S7","v":0},{"$f":"КАЛЕНДАР!T7","v":0},{"$f":"КАЛЕНДАР!U7","v":"Вечір кіно в парку"}]
[null,null,{"$f":"КАЛЕНДАР!C8","v":""},{"$f":"КАЛЕНДАР!D8","v":"00:00:00"},{"$f":"КАЛЕНДАР!E8","v":"00:00:00"},{"$f":"КАЛЕНДАР!F8","v":""},{"$f":"КАЛЕНДАР!G8","v":"00:00:00"},{"$f":"КАЛЕНДАР!H8","v":"00:00:00"},{"$f":"КАЛЕНДАР!I8","v":""},{"$f":"КАЛЕНДАР!J8","v":"00:00:00"},{"$f":"КАЛЕНДАР!K8","v":"00:00:00"},{"$f":"КАЛЕНДАР!L8","v":""},{"$f":"КАЛЕНДАР!M8","v":"00:00:00"},{"$f":"КАЛЕНДАР!N8","v":"00:00:00"},{"$f":"КАЛЕНДАР!O8","v":"Засідання міськради"},{"$f":"КАЛЕНДАР!P8","v":"00:00:00"},{"$f":"КАЛЕНДАР!Q8","v":"00:00:00"},{"$f":"КАЛЕНДАР!R8","v":""},{"$f":"КАЛЕНДАР!S8","v":"00:00:00"},{"$f":"КАЛЕНДАР!T8","v":"00:00:00"},{"$f":"КАЛЕНДАР!U8","v":""}]
[null,null,{"$f":"КАЛЕНДАР!C9","v":""},{"$f":"КАЛЕНДАР!D9","v":0},{"$f":"КАЛЕНДАР!E9","v":0},{"$f":"КАЛЕНДАР!F9","v":""},{"$f":"КАЛЕНДАР!G9","v":0},{"$f":"КАЛЕНДАР!H9","v":0},{"$f":"КАЛЕНДАР!I9","v":""},{"$f":"КАЛЕНДАР!J9","v":0},{"$f":"КАЛЕНДАР!K9","v":0},{"$f":"КАЛЕНДАР!L9","v":""},{"$f":"КАЛЕНДАР!M9","v":0},{"$f":"КАЛЕНДАР!N9","v":0},{"$f":"КАЛЕНДАР!O9","v":""},{"$f":"КАЛЕНДАР!P9","v":0},{"$f":"КАЛЕНДАР!Q9","v":0},{"$f":"КАЛЕНДАР!R9","v":""},{"$f":"КАЛЕНДАР!S9","v":0},{"$f":"КАЛЕНДАР!T9","v":0},{"$f":"КАЛЕНДАР!U9","v":""}]
[null,null,{"$f":"КАЛЕНДАР!C10","v":""},{"$f":"КАЛЕНДАР!D10","v":0},{"$f":"КАЛЕНДАР!E10","v":0},{"$f":"КАЛЕНДАР!F10","v":""},{"$f":"КАЛЕНДАР!G10","v":0},{"$f":"КАЛЕНДАР!H10","v":0},{"$f":"КАЛЕНДАР!I10","v":""},{"$f":"КАЛЕНДАР!J10","v":0},{"$f":"КАЛЕНДАР!K10","v":0},{"$f":"КАЛЕНДАР!L10","v":""},{"$f":"КАЛЕНДАР!M10","v":0},{"$f":"КАЛЕНДАР!N10","v":0},{"$f":"КАЛЕНДАР!O10","v":""},{"$f":"КАЛЕНДАР!P10","v":0},{"$f":"КАЛЕНДАР!Q10","v":0},{"$f":"КАЛЕНДАР!R10","v":""},{"$f":"КАЛЕНДАР!S10","v":0},{"$f":"КАЛЕНДАР!T10","v":0},{"$f":"КАЛЕНДАР!U10","v":""}]
[null,null,{"$f":"КАЛЕНДАР!C11","v":"2016-07-04"},{"$f":"КАЛЕНДАР!D11","v":0},{"$f":"КАЛЕНДАР!E11","v":0},{"$f":"КАЛЕНДАР!F11","v":"2016-07-05"},{"$f":"КАЛЕНДАР!G11","v":0},{"$f":"КАЛЕНДАР!H11","v":0},{"$f":"КАЛЕНДАР!I11","v":"2016-07-06"},{"$f":"КАЛЕНДАР!J11","v":0},{"$f":"КАЛЕНДАР!K11","v":0},{"$f":"КАЛЕНДАР!L11","v":"2016-07-07"},{"$f":"КАЛЕНДАР!M11","v":0},{"$f":"КАЛЕНДАР!N11","v":0},{"$f":"КАЛЕНДАР!O11","v":"2016-07-08"},{"$f":"КАЛЕНДАР!P11","v":0},{"$f":"КАЛЕНДАР!Q11","v":0},{"$f":"КАЛЕНДАР!R11","v":"2016-07-09"},{"$f":"КАЛЕНДАР!S11","v":0},{"$f":"КАЛЕНДАР!T11","v":0},{"$f":"КАЛЕНДАР!U11","v":"2016-07-10"}]
[null,null,{"$f":"КАЛЕНДАР!C12","v":""},{"$f":"КАЛЕНДАР!D12","v":0},{"$f":"КАЛЕНДАР!E12","v":0},{"$f":"КАЛЕНДАР!F12","v":""},{"$f":"КАЛЕНДАР!G12","v":0},{"$f":"КАЛЕНДАР!H12","v":0},{"$f":"КАЛЕНДАР!I12","v":""},{"$f":"КАЛЕНДАР!J12","v":0},{"$f":"КАЛЕНДАР!K12","v":0},{"$f":"КАЛЕНДАР!L12","v":""},{"$f":"КАЛЕНДАР!M12","v":0},{"$f":"КАЛЕНДАР!N12","v":0},{"$f":"КАЛЕНДАР!O12","v":"Засідання міськради"},{"$f":"КАЛЕНДАР!P12","v":0},{"$f":"КАЛЕНДАР!Q12","v":0},{"$f":"КАЛЕНДАР!R12","v":""},{"$f":"КАЛЕНДАР!S12","v":0},{"$f":"КАЛЕНДАР!T12","v":0},{"$f":"КАЛЕНДАР!U12","v":""}]
[null,null,{"$f":"КАЛЕНДАР!C13","v":""},{"$f":"КАЛЕНДАР!D13","v":0},{"$f":"КАЛЕНДАР!E13","v":0},{"$f":"КАЛЕНДАР!F13","v":""},{"$f":"КАЛЕНДАР!G13","v":0},{"$f":"КАЛЕНДАР!H13","v":0},{"$f":"КАЛЕНДАР!I13","v":""},{"$f":"КАЛЕНДАР!J13","v":0},{"$f":"КАЛЕНДАР!K13","v":0},{"$f":"КАЛЕНДАР!L13","v":""},{"$f":"КАЛЕНДАР!M13","v":0},{"$f":"КАЛЕНДАР!N13","v":0},{"$f":"КАЛЕНДАР!O13","v":""},{"$f":"КАЛЕНДАР!P13","v":0},{"$f":"КАЛЕНДАР!Q13","v":0},{"$f":"КАЛЕНДАР!R13","v":""},{"$f":"КАЛЕНДАР!S13","v":0},{"$f":"КАЛЕНДАР!T13","v":0},{"$f":"КАЛЕНДАР!U13","v":""}]
[null,null,{"$f":"КАЛЕНДАР!C14","v":""},{"$f":"КАЛЕНДАР!D14","v":0},{"$f":"КАЛЕНДАР!E14","v":0},{"$f":"КАЛЕНДАР!F14","v":""},{"$f":"КАЛЕНДАР!G14","v":0},{"$f":"КАЛЕНДАР!H14","v":0},{"$f":"КАЛЕНДАР!I14","v":""},{"$f":"КАЛЕНДАР!J14","v":0},{"$f":"КАЛЕНДАР!K14","v":0},{"$f":"КАЛЕНДАР!L14","v":""},{"$f":"КАЛЕНДАР!M14","v":0},{"$f":"КАЛЕНДАР!N14","v":0},{"$f":"КАЛЕНДАР!O14","v":""},{"$f":"КАЛЕНДАР!P14","v":0},{"$f":"КАЛЕНДАР!Q14","v":0},{"$f":"КАЛЕНДАР!R14","v":""},{"$f":"КАЛЕНДАР!S14","v":0},{"$f":"КАЛЕНДАР!T14","v":0},{"$f":"КАЛЕНДАР!U14","v":""}]
[null,null,{"$f":"КАЛЕНДАР!C15","v":""},{"$f":"КАЛЕНДАР!D15","v":0},{"$f":"КАЛЕНДАР!E15","v":0},{"$f":"КАЛЕНДАР!F15","v":""},{"$f":"КАЛЕНДАР!G15","v":0},{"$f":"КАЛЕНДАР!H15","v":0},{"$f":"КАЛЕНДАР!I15","v":""},{"$f":"КАЛЕНДАР!J15","v":0},{"$f":"КАЛЕНДАР!K15","v":0},{"$f":"КАЛЕНДАР!L15","v":""},{"$f":"КАЛЕНДАР!M15","v":0},{"$f":"КАЛЕНДАР!N15","v":0},{"$f":"КАЛЕНДАР!O15","v":""},{"$f":"КАЛЕНДАР!P15","v":0},{"$f":"КАЛЕНДАР!Q15","v":0},{"$f":"КАЛЕНДАР!R15","v":""},{"$f":"КАЛЕНДАР!S15","v":0},{"$f":"КАЛЕНДАР!T15","v":0},{"$f":"КАЛЕНДАР!U15","v":""}]
[null,null,{"$f":"КАЛЕНДАР!C16","v":"2016-07-11"},{"$f":"КАЛЕНДАР!D16","v":0},{"$f":"КАЛЕНДАР!E16","v":0},{"$f":"КАЛЕНДАР!F16","v":"2016-07-12"},{"$f":"КАЛЕНДАР!G16","v":0},{"$f":"КАЛЕНДАР!H16","v":0},{"$f":"КАЛЕНДАР!I16","v":"2016-07-13"},{"$f":"КАЛЕНДАР!J16","v":0},{"$f":"КАЛЕНДАР!K16","v":0},{"$f":"КАЛЕНДАР!L16","v":"2016-07-14"},{"$f":"КАЛЕНДАР!M16","v":0},{"$f":"КАЛЕНДАР!N16","v":0},{"$f":"КАЛЕНДАР!O16","v":"2016-07-15"},{"$f":"КАЛЕНДАР!P16","v":0},{"$f":"КАЛЕНДАР!Q16","v":0},{"$f":"КАЛЕНДАР!R16","v":"2016-07-16"},{"$f":"КАЛЕНДАР!S16","v":0},{"$f":"КАЛЕНДАР!T16","v":0},{"$f":"КАЛЕНДАР!U16","v":"2016-07-17"}]
[null,null,{"$f":"КАЛЕНДАР!C17","v":"Офіційний обід у торговій палаті"},{"$f":"КАЛЕНДАР!D17","v":0},{"$f":"КАЛЕНДАР!E17","v":0},{"$f":"КАЛЕНДАР!F17","v":"Виставка пам’яток старовини"},{"$f":"КАЛЕНДАР!G17","v":0},{"$f":"КАЛЕНДАР!H17","v":0},{"$f":"КАЛЕНДАР!I17","v":""},{"$f":"КАЛЕНДАР!J17","v":0},{"$f":"КАЛЕНДАР!K17","v":0},{"$f":"КАЛЕНДАР!L17","v":"Семінар для городян"},{"$f":"КАЛЕНДАР!M17","v":0},{"$f":"КАЛЕНДАР!N17","v":0},{"$f":"КАЛЕНДАР!O17","v":"Засідання міськради"},{"$f":"КАЛЕНДАР!P17","v":0},{"$f":"КАЛЕНДАР!Q17","v":0},{"$f":"КАЛЕНДАР!R17","v":""},{"$f":"КАЛЕНДАР!S17","v":0},{"$f":"КАЛЕНДАР!T17","v":0},{"$f":"КАЛЕНДАР!U17","v":""}]
[null,null,{"$f":"КАЛЕНДАР!C18","v":""},{"$f":"КАЛЕНДАР!D18","v":0},{"$f":"КАЛЕНДАР!E18","v":0},{"$f":"КАЛЕНДАР!F18","v":""},{"$f":"КАЛЕНДАР!G18","v":0},{"$f":"КАЛЕНДАР!H18","v":0},{"$f":"КАЛЕНДАР!I18","v":""},{"$f":"КАЛЕНДАР!J18","v":0},{"$f":"КАЛЕНДАР!K18","v":0},{"$f":"КАЛЕНДАР!L18","v":""},{"$f":"КАЛЕНДАР!M18","v":0},{"$f":"КАЛЕНДАР!N18","v":0},{"$f":"КАЛЕНДАР!O18","v":""},{"$f":"КАЛЕНДАР!P18","v":0},{"$f":"КАЛЕНДАР!Q18","v":0},{"$f":"КАЛЕНДАР!R18","v":""},{"$f":"КАЛЕНДАР!S18","v":0},{"$f":"КАЛЕНДАР!T18","v":0},{"$f":"КАЛЕНДАР!U18","v":""}]
[null,null,{"$f":"КАЛЕНДАР!C19","v":""},{"$f":"КАЛЕНДАР!D19","v":0},{"$f":"КАЛЕНДАР!E19","v":0},{"$f":"КАЛЕНДАР!F19","v":""},{"$f":"КАЛЕНДАР!G19","v":0},{"$f":"КАЛЕНДАР!H19","v":0},{"$f":"КАЛЕНДАР!I19","v":""},{"$f":"КАЛЕНДАР!J19","v":0},{"$f":"КАЛЕНДАР!K19","v":0},{"$f":"КАЛЕНДАР!L19","v":""},{"$f":"КАЛЕНДАР!M19","v":0},{"$f":"КАЛЕНДАР!N19","v":0},{"$f":"КАЛЕНДАР!O19","v":""},{"$f":"КАЛЕНДАР!P19","v":0},{"$f":"КАЛЕНДАР!Q19","v":0},{"$f":"КАЛЕНДАР!R19","v":""},{"$f":"КАЛЕНДАР!S19","v":0},{"$f":"КАЛЕНДАР!T19","v":0},{"$f":"КАЛЕНДАР!U19","v":""}]
[null,null,{"$f":"КАЛЕНДАР!C20","v":""},{"$f":"КАЛЕНДАР!D20","v":0},{"$f":"КАЛЕНДАР!E20","v":0},{"$f":"КАЛЕНДАР!F20","v":""},{"$f":"КАЛЕНДАР!G20","v":0},{"$f":"КАЛЕНДАР!H20","v":0},{"$f":"КАЛЕНДАР!I20","v":""},{"$f":"КАЛЕНДАР!J20","v":0},{"$f":"КАЛЕНДАР!K20","v":0},{"$f":"КАЛЕНДАР!L20","v":""},{"$f":"КАЛЕНДАР!M20","v":0},{"$f":"КАЛЕНДАР!N20","v":0},{"$f":"КАЛЕНДАР!O20","v":""},{"$f":"КАЛЕНДАР!P20","v":0},{"$f":"КАЛЕНДАР!Q20","v":0},{"$f":"КАЛЕНДАР!R20","v":""},{"$f":"КАЛЕНДАР!S20","v":0},{"$f":"КАЛЕНДАР!T20","v":0},{"$f":"КАЛЕНДАР!U20","v":""}]
[null,null,{"$f":"КАЛЕНДАР!C21","v":"2016-07-18"},{"$f":"КАЛЕНДАР!D21","v":0},{"$f":"КАЛЕНДАР!E21","v":0},{"$f":"КАЛЕНДАР!F21","v":"2016-07-19"},{"$f":"КАЛЕНДАР!G21","v":0},{"$f":"КАЛЕНДАР!H21","v":0},{"$f":"КАЛЕНДАР!I21","v":"2016-07-20"},{"$f":"КАЛЕНДАР!J21","v":0},{"$f":"КАЛЕНДАР!K21","v":0},{"$f":"КАЛЕНДАР!L21","v":"2016-07-21"},{"$f":"КАЛЕНДАР!M21","v":0},{"$f":"КАЛЕНДАР!N21","v":0},{"$f":"КАЛЕНДАР!O21","v":"2016-07-22"},{"$f":"КАЛЕНДАР!P21","v":0},{"$f":"КАЛЕНДАР!Q21","v":0},{"$f":"КАЛЕНДАР!R21","v":"2016-07-23"},{"$f":"КАЛЕНДАР!S21","v":0},{"$f":"КАЛЕНДАР!T21","v":0},{"$f":"КАЛЕНДАР!U21","v":"2016-07-24"}]
[null,null,{"$f":"КАЛЕНДАР!C22","v":""},{"$f":"КАЛЕНДАР!D22","v":0},{"$f":"КАЛЕНДАР!E22","v":0},{"$f":"КАЛЕНДАР!F22","v":"Семінар зі стратегічного планування"},{"$f":"КАЛЕНДАР!G22","v":0},{"$f":"КАЛЕНДАР!H22","v":0},{"$f":"КАЛЕНДАР!I22","v":"Прибирання парку"},{"$f":"КАЛЕНДАР!J22","v":0},{"$f":"КАЛЕНДАР!K22","v":0},{"$f":"КАЛЕНДАР!L22","v":""},{"$f":"КАЛЕНДАР!M22","v":0},{"$f":"КАЛЕНДАР!N22","v":0},{"$f":"КАЛЕНДАР!O22","v":"Засідання міськради"},{"$f":"КАЛЕНДАР!P22","v":0},{"$f":"КАЛЕНДАР!Q22","v":0},{"$f":"КАЛЕНДАР!R22","v":""},{"$f":"КАЛЕНДАР!S22","v":0},{"$f":"КАЛЕНДАР!T22","v":0},{"$f":"КАЛЕНДАР!U22","v":""}]
[null,null,{"$f":"КАЛЕНДАР!C23","v":""},{"$f":"КАЛЕНДАР!D23","v":0},{"$f":"КАЛЕНДАР!E23","v":0},{"$f":"КАЛЕНДАР!F23","v":""},{"$f":"КАЛЕНДАР!G23","v":0},{"$f":"КАЛЕНДАР!H23","v":0},{"$f":"КАЛЕНДАР!I23","v":""},{"$f":"КАЛЕНДАР!J23","v":0},{"$f":"КАЛЕНДАР!K23","v":0},{"$f":"КАЛЕНДАР!L23","v":""},{"$f":"КАЛЕНДАР!M23","v":0},{"$f":"КАЛЕНДАР!N23","v":0},{"$f":"КАЛЕНДАР!O23","v":""},{"$f":"КАЛЕНДАР!P23","v":0},{"$f":"КАЛЕНДАР!Q23","v":0},{"$f":"КАЛЕНДАР!R23","v":""},{"$f":"КАЛЕНДАР!S23","v":0},{"$f":"КАЛЕНДАР!T23","v":0},{"$f":"КАЛЕНДАР!U23","v":""}]
[null,null,{"$f":"КАЛЕНДАР!C24","v":""},{"$f":"КАЛЕНДАР!D24","v":0},{"$f":"КАЛЕНДАР!E24","v":0},{"$f":"КАЛЕНДАР!F24","v":""},{"$f":"КАЛЕНДАР!G24","v":0},{"$f":"КАЛЕНДАР!H24","v":0},{"$f":"КАЛЕНДАР!I24","v":""},{"$f":"КАЛЕНДАР!J24","v":0},{"$f":"КАЛЕНДАР!K24","v":0},{"$f":"КАЛЕНДАР!L24","v":""},{"$f":"КАЛЕНДАР!M24","v":0},{"$f":"КАЛЕНДАР!N24","v":0},{"$f":"КАЛЕНДАР!O24","v":""},{"$f":"КАЛЕНДАР!P24","v":0},{"$f":"КАЛЕНДАР!Q24","v":0},{"$f":"КАЛЕНДАР!R24","v":""},{"$f":"КАЛЕНДАР!S24","v":0},{"$f":"КАЛЕНДАР!T24","v":0},{"$f":"КАЛЕНДАР!U24","v":""}]
[null,null,{"$f":"КАЛЕНДАР!C25","v":""},{"$f":"КАЛЕНДАР!D25","v":0},{"$f":"КАЛЕНДАР!E25","v":0},{"$f":"КАЛЕНДАР!F25","v":""},{"$f":"КАЛЕНДАР!G25","v":0},{"$f":"КАЛЕНДАР!H25","v":0},{"$f":"КАЛЕНДАР!I25","v":""},{"$f":"КАЛЕНДАР!J25","v":0},{"$f":"КАЛЕНДАР!K25","v":0},{"$f":"КАЛЕНДАР!L25","v":""},{"$f":"КАЛЕНДАР!M25","v":0},{"$f":"КАЛЕНДАР!N25","v":0},{"$f":"КАЛЕНДАР!O25","v":""},{"$f":"КАЛЕНДАР!P25","v":0},{"$f":"КАЛЕНДАР!Q25","v":0},{"$f":"КАЛЕНДАР!R25","v":""},{"$f":"КАЛЕНДАР!S25","v":0},{"$f":"КАЛЕНДАР!T25","v":0},{"$f":"КАЛЕНДАР!U25","v":""}]
[null,null,{"$f":"КАЛЕНДАР!C26","v":"2016-07-25"},{"$f":"КАЛЕНДАР!D26","v":0},{"$f":"КАЛЕНДАР!E26","v":0},{"$f":"КАЛЕНДАР!F26","v":"2016-07-26"},{"$f":"КАЛЕНДАР!G26","v":0},{"$f":"КАЛЕНДАР!H26","v":0},{"$f":"КАЛЕНДАР!I26","v":"2016-07-27"},{"$f":"КАЛЕНДАР!J26","v":0},{"$f":"КАЛЕНДАР!K26","v":0},{"$f":"КАЛЕНДАР!L26","v":"2016-07-28"},{"$f":"КАЛЕНДАР!M26","v":0},{"$f":"КАЛЕНДАР!N26","v":0},{"$f":"КАЛЕНДАР!O26","v":"2016-07-29"},{"$f":"КАЛЕНДАР!P26","v":0},{"$f":"КАЛЕНДАР!Q26","v":0},{"$f":"КАЛЕНДАР!R26","v":"2016-07-30"},{"$f":"КАЛЕНДАР!S26","v":0},{"$f":"КАЛЕНДАР!T26","v":0},{"$f":"КАЛЕНДАР!U26","v":"2016-07-31"}]
[null,null,{"$f":"КАЛЕНДАР!C27","v":""},{"$f":"КАЛЕНДАР!D27","v":0},{"$f":"КАЛЕНДАР!E27","v":0},{"$f":"КАЛЕНДАР!F27","v":"Пішохідна екскурсія центром міста"},{"$f":"КАЛЕНДАР!G27","v":0},{"$f":"КАЛЕНДАР!H27","v":0},{"$f":"КАЛЕНДАР!I27","v":""},{"$f":"КАЛЕНДАР!J27","v":0},{"$f":"КАЛЕНДАР!K27","v":0},{"$f":"КАЛЕНДАР!L27","v":""},{"$f":"КАЛЕНДАР!M27","v":0},{"$f":"КАЛЕНДАР!N27","v":0},{"$f":"КАЛЕНДАР!O27","v":"Засідання міськради"},{"$f":"КАЛЕНДАР!P27","v":0},{"$f":"КАЛЕНДАР!Q27","v":0},{"$f":"КАЛЕНДАР!R27","v":""},{"$f":"КАЛЕНДАР!S27","v":0},{"$f":"КАЛЕНДАР!T27","v":0},{"$f":"КАЛЕНДАР!U27","v":""}]
[null,null,{"$f":"КАЛЕНДАР!C28","v":""},{"$f":"КАЛЕНДАР!D28","v":0},{"$f":"КАЛЕНДАР!E28","v":0},{"$f":"КАЛЕНДАР!F28","v":"Відвідування кафе та ресторанів"},{"$f":"КАЛЕНДАР!G28","v":0},{"$f":"КАЛЕНДАР!H28","v":0},{"$f":"КАЛЕНДАР!I28","v":""},{"$f":"КАЛЕНДАР!J28","v":0},{"$f":"КАЛЕНДАР!K28","v":0},{"$f":"КАЛЕНДАР!L28","v":""},{"$f":"КАЛЕНДАР!M28","v":0},{"$f":"КАЛЕНДАР!N28","v":0},{"$f":"КАЛЕНДАР!O28","v":""},{"$f":"КАЛЕНДАР!P28","v":0},{"$f":"КАЛЕНДАР!Q28","v":0},{"$f":"КАЛЕНДАР!R28","v":""},{"$f":"КАЛЕНДАР!S28","v":0},{"$f":"КАЛЕНДАР!T28","v":0},{"$f":"КАЛЕНДАР!U28","v":""}]
[null,null,{"$f":"КАЛЕНДАР!C29","v":""},{"$f":"КАЛЕНДАР!D29","v":0},{"$f":"КАЛЕНДАР!E29","v":0},{"$f":"КАЛЕНДАР!F29","v":""},{"$f":"КАЛЕНДАР!G29","v":0},{"$f":"КАЛЕНДАР!H29","v":0},{"$f":"КАЛЕНДАР!I29","v":""},{"$f":"КАЛЕНДАР!J29","v":0},{"$f":"КАЛЕНДАР!K29","v":0},{"$f":"КАЛЕНДАР!L29","v":""},{"$f":"КАЛЕНДАР!M29","v":0},{"$f":"КАЛЕНДАР!N29","v":0},{"$f":"КАЛЕНДАР!O29","v":""},{"$f":"КАЛЕНДАР!P29","v":0},{"$f":"КАЛЕНДАР!Q29","v":0},{"$f":"КАЛЕНДАР!R29","v":""},{"$f":"КАЛЕНДАР!S29","v":0},{"$f":"КАЛЕНДАР!T29","v":0},{"$f":"КАЛЕНДАР!U29","v":""}]
[null,null,{"$f":"КАЛЕНДАР!C30","v":""},{"$f":"КАЛЕНДАР!D30","v":0},{"$f":"КАЛЕНДАР!E30","v":0},{"$f":"КАЛЕНДАР!F30","v":""},{"$f":"КАЛЕНДАР!G30","v":0},{"$f":"КАЛЕНДАР!H30","v":0},{"$f":"КАЛЕНДАР!I30","v":""},{"$f":"КАЛЕНДАР!J30","v":0},{"$f":"КАЛЕНДАР!K30","v":0},{"$f":"КАЛЕНДАР!L30","v":""},{"$f":"КАЛЕНДАР!M30","v":0},{"$f":"КАЛЕНДАР!N30","v":0},{"$f":"КАЛЕНДАР!O30","v":""},{"$f":"КАЛЕНДАР!P30","v":0},{"$f":"КАЛЕНДАР!Q30","v":0},{"$f":"КАЛЕНДАР!R30","v":""},{"$f":"КАЛЕНДАР!S30","v":0},{"$f":"КАЛЕНДАР!T30","v":0},{"$f":"КАЛЕНДАР!U30","v":""}]
[null,null,{"$f":"КАЛЕНДАР!C31","v":"2016-08-01"},{"$f":"КАЛЕНДАР!D31","v":0},{"$f":"КАЛЕНДАР!E31","v":0},{"$f":"КАЛЕНДАР!F31","v":"2016-08-02"},null,null,{"$f":"КАЛЕНДАР!I31","v":"НОТАТКИ."}]
[null,null,{"$f":"КАЛЕНДАР!C32","v":""},{"$f":"КАЛЕНДАР!D32","v":0},{"$f":"КАЛЕНДАР!E32","v":0},{"$f":"КАЛЕНДАР!F32","v":""}]
[null,null,{"$f":"КАЛЕНДАР!C33","v":""},{"$f":"КАЛЕНДАР!D33","v":0},{"$f":"КАЛЕНДАР!E33","v":0},{"$f":"КАЛЕНДАР!F33","v":""}]
[null,null,{"$f":"КАЛЕНДАР!C34","v":""},{"$f":"КАЛЕНДАР!D34","v":0},{"$f":"КАЛЕНДАР!E34","v":0},{"$f":"КАЛЕНДАР!F34","v":""}]
[null,null,{"$f":"КАЛЕНДАР!C35","v":""},{"$f":"КАЛЕНДАР!D35","v":0},{"$f":"КАЛЕНДАР!E35","v":0},{"$f":"КАЛЕНДАР!F35","v":""}]

{"sheet":"АДМІНІСТРАТОР","index":3,"n_rows":14,"n_cols":3,"rows_kept":14,"hidden":true}
[]
[null,"МІСЯЦЬ","ЧИСЛО"]
[null,"СІЧЕНЬ",1]
[null,"ЛЮТИЙ",2]
[null,"БЕРЕЗЕНЬ",3]
[null,"КВІТЕНЬ",4]
[null,"ТРАВЕНЬ",5]
[null,"ЧЕРВЕНЬ",6]
[null,"ЛИПЕНЬ",7]
[null,"СЕРПЕНЬ",8]
[null,"ВЕРЕСЕНЬ",9]
[null,"ЖОВТЕНЬ",10]
[null,"ЛИСТОПАД",11]
[null,"ГРУДЕНЬ",12]